[Event "Live Chess"]
[Site "Chess.com"]
[Date "2011.01.29"]
[Round "-"]
[White "ihaterodrigo"]
[Black "hipposcottimus"]
[Result "0-1"]
[CurrentPosition "3k4/1pp4p/5qp1/8/8/4P3/P3K1NP/8 w - -"]
[Timezone "UTC"]
[ECO "A06"]
[ECOUrl "https://www.chess.com/openings/Reti-Opening-Reversed-Mexican-Defense"]
[UTCDate "2011.01.29"]
[UTCTime "22:32:15"]
[WhiteElo "1601"]
[BlackElo "1680"]
[TimeControl "60"]
[Termination "hipposcottimus won on time"]
[StartTime "22:32:15"]
[EndDate "2011.01.29"]
[EndTime "22:34:22"]
[Link "https://www.chess.com/game/live/92754096"]

1. Nc3 {[%clk 0:01:00]} 1... d5 {[%clk 0:01:00]} 2. Nf3 {[%clk 0:00:58.9]} 2... d4 {[%clk 0:00:58.7]} 3. Ne4 {[%clk 0:00:57.8]} 3... f5 {[%clk 0:00:57.8]} 4. Ng3 {[%clk 0:00:55.9]} 4... Nc6 {[%clk 0:00:56.6]} 5. d3 {[%clk 0:00:55.1]} 5... f4 {[%clk 0:00:55.1]} 6. Nh5 {[%clk 0:00:51.5]} 6... Bg4 {[%clk 0:00:54.7]} 7. Nxf4 {[%clk 0:00:50]} 7... Bxf3 {[%clk 0:00:52.9]} 8. gxf3 {[%clk 0:00:48.6]} 8... Nf6 {[%clk 0:00:52.6]} 9. Ng2 {[%clk 0:00:47.1]} 9... e5 {[%clk 0:00:52.3]} 10. e3 {[%clk 0:00:46.4]} 10... Qe7 {[%clk 0:00:51.1]} 11. exd4 {[%clk 0:00:44.9]} 11... exd4+ {[%clk 0:00:50.8]} 12. Be2 {[%clk 0:00:43.9]} 12... O-O-O {[%clk 0:00:50.2]} 13. c3 {[%clk 0:00:40.6]} 13... Ne5 {[%clk 0:00:49.8]} 14. cxd4 {[%clk 0:00:39.1]} 14... Nxf3+ {[%clk 0:00:48.5]} 15. Kf1 {[%clk 0:00:33.9]} 15... Nxd4 {[%clk 0:00:48.1]} 16. Be3 {[%clk 0:00:27.3]} 16... g6 {[%clk 0:00:39.8]} 17. Qa4 {[%clk 0:00:24.4]} 17... Nxe2 {[%clk 0:00:37.5]} 18. Kxe2 {[%clk 0:00:22.2]} 18... Ng4 {[%clk 0:00:34.7]} 19. Kf1 {[%clk 0:00:14.9]} 19... Nxe3+ {[%clk 0:00:33.2]} 20. fxe3 {[%clk 0:00:14.1]} 20... Rxd3 {[%clk 0:00:32]} 21. Qxa7 {[%clk 0:00:13.4]} 21... Qf6+ {[%clk 0:00:31]} 22. Ke2 {[%clk 0:00:11.9]} 22... Rd8 {[%clk 0:00:22]} 23. Rad1 {[%clk 0:00:11.1]} 23... Qxb2+ {[%clk 0:00:17.9]} 24. Kf3 {[%clk 0:00:08.1]} 24... Qf6+ {[%clk 0:00:12.9]} 25. Ke2 {[%clk 0:00:06]} 25... Bd6 {[%clk 0:00:12.6]} 26. Qa8+ {[%clk 0:00:03.6]} 26... Kd7 {[%clk 0:00:12.2]} 27. Qxd8+ {[%clk 0:00:02.4]} 27... Rxd8 {[%clk 0:00:09.3]} 28. Rxd6+ {[%clk 0:00:02]} 28... Kxd6 {[%clk 0:00:08.4]} 29. Rd1+ {[%clk 0:00:01.3]} 29... Ke7 {[%clk 0:00:07.7]} 30. Rxd8 {[%clk 0:00:00.7]} 30... Kxd8 {[%clk 0:00:07.3]} 0-1

[Event "Live Chess"]
[Site "Chess.com"]
[Date "2011.01.29"]
[Round "-"]
[White "hipposcottimus"]
[Black "Vengance09"]
[Result "1-0"]
[CurrentPosition "6k1/7p/2p3p1/2P5/2bP1P2/R7/6PP/6K1 b - -"]
[Timezone "UTC"]
[ECO "B12"]
[ECOUrl "https://www.chess.com/openings/Caro-Kann-Defense-Advance-Variation-3...Bf5"]
[UTCDate "2011.01.29"]
[UTCTime "22:29:33"]
[WhiteElo "1674"]
[BlackElo "1600"]
[TimeControl "60"]
[Termination "hipposcottimus won by resignation"]
[StartTime "22:29:33"]
[EndDate "2011.01.29"]
[EndTime "22:31:19"]
[Link "https://www.chess.com/game/live/92753537"]

1. e4 {[%clk 0:01:00]} 1... c6 {[%clk 0:01:00]} 2. d4 {[%clk 0:00:58.4]} 2... d5 {[%clk 0:00:59.4]} 3. e5 {[%clk 0:00:58.2]} 3... Bf5 {[%clk 0:00:57.9]} 4. f4 {[%clk 0:00:57.9]} 4... e6 {[%clk 0:00:57.2]} 5. c4 {[%clk 0:00:57.3]} 5... Bb4+ {[%clk 0:00:55.8]} 6. Bd2 {[%clk 0:00:55.9]} 6... Qb6 {[%clk 0:00:54.4]} 7. Nc3 {[%clk 0:00:52.3]} 7... Nd7 {[%clk 0:00:51.2]} 8. Nf3 {[%clk 0:00:50.7]} 8... a5 {[%clk 0:00:49.6]} 9. c5 {[%clk 0:00:50]} 9... Qc7 {[%clk 0:00:46.6]} 10. Be2 {[%clk 0:00:48.4]} 10... a4 {[%clk 0:00:44.9]} 11. O-O {[%clk 0:00:47.2]} 11... a3 {[%clk 0:00:44.2]} 12. bxa3 {[%clk 0:00:46.5]} 12... Bxa3 {[%clk 0:00:42.9]} 13. Ng5 {[%clk 0:00:40.1]} 13... f6 {[%clk 0:00:41.1]} 14. Bh5+ {[%clk 0:00:38.2]} 14... g6 {[%clk 0:00:39.4]} 15. Nxe6 {[%clk 0:00:34.9]} 15... Bxe6 {[%clk 0:00:33.7]} 16. Bf3 {[%clk 0:00:34.4]} 16... Ne7 {[%clk 0:00:32.7]} 17. Be1 {[%clk 0:00:33.6]} 17... f5 {[%clk 0:00:31]} 18. Bh4 {[%clk 0:00:33]} 18... O-O {[%clk 0:00:29.2]} 19. Bf6 {[%clk 0:00:32.5]} 19... Rxf6 {[%clk 0:00:27.5]} 20. exf6 {[%clk 0:00:32.2]} 20... Nxf6 {[%clk 0:00:27.1]} 21. Re1 {[%clk 0:00:31]} 21... Ne4 {[%clk 0:00:26]} 22. Bxe4 {[%clk 0:00:29.6]} 22... dxe4 {[%clk 0:00:25.9]} 23. Nxe4 {[%clk 0:00:29.3]} 23... fxe4 {[%clk 0:00:24.6]} 24. Rxe4 {[%clk 0:00:29]} 24... Bf5 {[%clk 0:00:23]} 25. Re5 {[%clk 0:00:27]} 25... Re8 {[%clk 0:00:21]} 26. Qe1 {[%clk 0:00:24.8]} 26... Qa5 {[%clk 0:00:19.4]} 27. Rxe7 {[%clk 0:00:23.3]} 27... Qxe1+ {[%clk 0:00:18]} 28. Raxe1 {[%clk 0:00:20.8]} 28... Rxe7 {[%clk 0:00:16.9]} 29. Rxe7 {[%clk 0:00:20.5]} 29... Bb1 {[%clk 0:00:14.3]} 30. Rxb7 {[%clk 0:00:19.7]} 30... Bxa2 {[%clk 0:00:12.9]} 31. Ra7 {[%clk 0:00:19.3]} 31... Bc4 {[%clk 0:00:11.2]} 32. Rxa3 {[%clk 0:00:18.6]} 1-0

[Event "Live Chess"]
[Site "Chess.com"]
[Date "2011.01.29"]
[Round "-"]
[White "invidi0us"]
[Black "hipposcottimus"]
[Result "0-1"]
[CurrentPosition "7k/pp4p1/2p2r1p/5b2/5N2/5KP1/PP1r3P/6R1 w - -"]
[Timezone "UTC"]
[ECO "A00"]
[ECOUrl "https://www.chess.com/openings/Kings-Fianchetto-Opening-1...e5-2.Bg2-d5-3.d3"]
[UTCDate "2011.01.29"]
[UTCTime "22:27:11"]
[WhiteElo "1419"]
[BlackElo "1667"]
[TimeControl "60"]
[Termination "hipposcottimus won on time"]
[StartTime "22:27:11"]
[EndDate "2011.01.29"]
[EndTime "22:29:07"]
[Link "https://www.chess.com/game/live/92752923"]

1. g3 {[%clk 0:01:00]} 1... e5 {[%clk 0:01:00]} 2. Bg2 {[%clk 0:00:59.2]} 2... d5 {[%clk 0:00:59.7]} 3. d3 {[%clk 0:00:56.4]} 3... d4 {[%clk 0:00:59.4]} 4. f4 {[%clk 0:00:55.6]} 4... f5 {[%clk 0:00:59.1]} 5. fxe5 {[%clk 0:00:53.7]} 5... Qe7 {[%clk 0:00:56.8]} 6. Nf3 {[%clk 0:00:52.1]} 6... Nc6 {[%clk 0:00:56.2]} 7. c3 {[%clk 0:00:49.6]} 7... Nxe5 {[%clk 0:00:55.3]} 8. Nxe5 {[%clk 0:00:46.6]} 8... Qxe5 {[%clk 0:00:55]} 9. O-O {[%clk 0:00:45.3]} 9... dxc3 {[%clk 0:00:53.9]} 10. Bf4 {[%clk 0:00:43.6]} 10... Bc5+ {[%clk 0:00:53.3]} 11. e3 {[%clk 0:00:39.8]} 11... Bxe3+ {[%clk 0:00:52.2]} 12. Bxe3 {[%clk 0:00:38.1]} 12... Qxe3+ {[%clk 0:00:50.8]} 13. Kh1 {[%clk 0:00:35.8]} 13... Ne7 {[%clk 0:00:50.4]} 14. Nxc3 {[%clk 0:00:35]} 14... O-O {[%clk 0:00:48.4]} 15. Qh5 {[%clk 0:00:33.5]} 15... Ng6 {[%clk 0:00:45.8]} 16. Bd5+ {[%clk 0:00:31.6]} 16... Kh8 {[%clk 0:00:44]} 17. Rxf5 {[%clk 0:00:28.4]} 17... c6 {[%clk 0:00:38.8]} 18. Bf7 {[%clk 0:00:23.1]} 18... Bxf5 {[%clk 0:00:34.4]} 19. Bxg6 {[%clk 0:00:21.3]} 19... Bxg6 {[%clk 0:00:33.4]} 20. Rg1 {[%clk 0:00:18.9]} 20... Qf3+ {[%clk 0:00:32.1]} 21. Qxf3 {[%clk 0:00:17.6]} 21... Rxf3 {[%clk 0:00:30]} 22. Ne4 {[%clk 0:00:15.8]} 22... Rxd3 {[%clk 0:00:27.2]} 23. Ng5 {[%clk 0:00:14.5]} 23... Rad8 {[%clk 0:00:25.1]} 24. Kg2 {[%clk 0:00:13.2]} 24... h6 {[%clk 0:00:22.4]} 25. Ne6 {[%clk 0:00:10.5]} 25... Be4+ {[%clk 0:00:22]} 26. Kh3 {[%clk 0:00:08.6]} 26... R8d6 {[%clk 0:00:21.5]} 27. Nf4 {[%clk 0:00:06.2]} 27... Bf5+ {[%clk 0:00:20.9]} 28. Kg2 {[%clk 0:00:03.2]} 28... Rd2+ {[%clk 0:00:20]} 29. Kf3 {[%clk 0:00:02.4]} 29... Rf6 {[%clk 0:00:16.8]} 0-1

[Event "Live Chess"]
[Site "Chess.com"]
[Date "2011.01.29"]
[Round "-"]
[White "hipposcottimus"]
[Black "invidi0us"]
[Result "1-0"]
[CurrentPosition "r7/pp4Q1/1kpb4/8/4N3/1P6/1PP2PPP/R3R1K1 b - -"]
[Timezone "UTC"]
[ECO "B01"]
[ECOUrl "https://www.chess.com/openings/Scandinavian-Defense-Mieses-Kotrc-Variation-3.Nc3"]
[UTCDate "2011.01.29"]
[UTCTime "22:24:53"]
[WhiteElo "1664"]
[BlackElo "1422"]
[TimeControl "60"]
[Termination "hipposcottimus won on time"]
[StartTime "22:24:53"]
[EndDate "2011.01.29"]
[EndTime "22:26:47"]
[Link "https://www.chess.com/game/live/92752296"]

1. e4 {[%clk 0:01:00]} 1... d5 {[%clk 0:01:00]} 2. exd5 {[%clk 0:00:59.7]} 2... Qxd5 {[%clk 0:00:58]} 3. Nc3 {[%clk 0:00:59]} 3... Qe6+ {[%clk 0:00:57.3]} 4. Be2 {[%clk 0:00:58.6]} 4... Qd6 {[%clk 0:00:56.4]} 5. d4 {[%clk 0:00:58.1]} 5... Nd7 {[%clk 0:00:55.7]} 6. Nf3 {[%clk 0:00:57.5]} 6... Nb6 {[%clk 0:00:54.8]} 7. Ne4 {[%clk 0:00:57]} 7... Qd5 {[%clk 0:00:52.3]} 8. Nc3 {[%clk 0:00:50.5]} 8... Qa5 {[%clk 0:00:50.9]} 9. O-O {[%clk 0:00:49.8]} 9... e5 {[%clk 0:00:50]} 10. Bd2 {[%clk 0:00:47.5]} 10... exd4 {[%clk 0:00:48.3]} 11. Nxd4 {[%clk 0:00:47.2]} 11... Qe5 {[%clk 0:00:45.8]} 12. Ndb5 {[%clk 0:00:42.3]} 12... Nd5 {[%clk 0:00:42.4]} 13. Re1 {[%clk 0:00:38.9]} 13... Nxc3 {[%clk 0:00:40.6]} 14. Nxc3 {[%clk 0:00:37.6]} 14... Qf6 {[%clk 0:00:33.6]} 15. Bb5+ {[%clk 0:00:36.5]} 15... Kd8 {[%clk 0:00:29]} 16. Bg5+ {[%clk 0:00:35.4]} 16... Bd6 {[%clk 0:00:19.6]} 17. Bxf6+ {[%clk 0:00:34.4]} 17... Nxf6 {[%clk 0:00:18.8]} 18. Qe2 {[%clk 0:00:29.7]} 18... Be6 {[%clk 0:00:18.4]} 19. Ba4 {[%clk 0:00:27]} 19... Kc8 {[%clk 0:00:14]} 20. Bb3 {[%clk 0:00:26.6]} 20... Bxb3 {[%clk 0:00:11.9]} 21. axb3 {[%clk 0:00:26.3]} 21... Ng4 {[%clk 0:00:10.8]} 22. Qxg4+ {[%clk 0:00:25.4]} 22... f5 {[%clk 0:00:10.3]} 23. Qxg7 {[%clk 0:00:24.6]} 23... Kd8 {[%clk 0:00:09.7]} 24. Qxh8+ {[%clk 0:00:23.8]} 24... Kd7 {[%clk 0:00:09.1]} 25. Qxh7+ {[%clk 0:00:23.5]} 25... Kc6 {[%clk 0:00:07.7]} 26. Qxf5 {[%clk 0:00:23.2]} 26... Kb6 {[%clk 0:00:06.9]} 27. Qe4 {[%clk 0:00:22.7]} 27... c6 {[%clk 0:00:03.4]} 28. Qd4+ {[%clk 0:00:22.1]} 28... Kc7 {[%clk 0:00:02.7]} 29. Qg7+ {[%clk 0:00:19.8]} 29... Kb6 {[%clk 0:00:02]} 30. Ne4 {[%clk 0:00:19.4]} 1-0

[Event "Live Chess"]
[Site "Chess.com"]
[Date "2011.01.29"]
[Round "-"]
[White "invidi0us"]
[Black "hipposcottimus"]
[Result "0-1"]
[CurrentPosition "2r1r3/pp3k1p/5pp1/8/5P2/8/bK2R1PP/8 w - -"]
[Timezone "UTC"]
[ECO "B12"]
[ECOUrl "https://www.chess.com/openings/Caro-Kann-Defense-2.d4-d5"]
[UTCDate "2011.01.29"]
[UTCTime "22:22:30"]
[WhiteElo "1425"]
[BlackElo "1661"]
[TimeControl "60"]
[Termination "hipposcottimus won on time"]
[StartTime "22:22:30"]
[EndDate "2011.01.29"]
[EndTime "22:24:34"]
[Link "https://www.chess.com/game/live/92751674"]

1. d4 {[%clk 0:01:00]} 1... d5 {[%clk 0:01:00]} 2. e4 {[%clk 0:00:59.2]} 2... c6 {[%clk 0:00:59.8]} 3. Bg5 {[%clk 0:00:57.2]} 3... dxe4 {[%clk 0:00:58.5]} 4. d5 {[%clk 0:00:55.5]} 4... f6 {[%clk 0:00:58.2]} 5. Bf4 {[%clk 0:00:54.7]} 5... cxd5 {[%clk 0:00:55]} 6. Bxb8 {[%clk 0:00:53.3]} 6... Rxb8 {[%clk 0:00:54.7]} 7. c4 {[%clk 0:00:51.3]} 7... e6 {[%clk 0:00:54.4]} 8. Ne2 {[%clk 0:00:50.6]} 8... Bb4+ {[%clk 0:00:51.6]} 9. Nbc3 {[%clk 0:00:47.9]} 9... Ne7 {[%clk 0:00:51.2]} 10. cxd5 {[%clk 0:00:46.6]} 10... exd5 {[%clk 0:00:49.9]} 11. Nd4 {[%clk 0:00:42.5]} 11... Nc6 {[%clk 0:00:47.2]} 12. Nb5 {[%clk 0:00:41.2]} 12... d4 {[%clk 0:00:44.7]} 13. Qh5+ {[%clk 0:00:34.2]} 13... g6 {[%clk 0:00:43.3]} 14. Qd5 {[%clk 0:00:29.8]} 14... Qxd5 {[%clk 0:00:39.7]} 15. Nc7+ {[%clk 0:00:25.8]} 15... Kf7 {[%clk 0:00:36.9]} 16. Nxd5 {[%clk 0:00:25.3]} 16... dxc3 {[%clk 0:00:36.4]} 17. Nxc3 {[%clk 0:00:24]} 17... Nd4 {[%clk 0:00:34.9]} 18. O-O-O {[%clk 0:00:22.2]} 18... Bxc3 {[%clk 0:00:30.8]} 19. bxc3 {[%clk 0:00:20.1]} 19... Nf5 {[%clk 0:00:29.6]} 20. Bc4+ {[%clk 0:00:19.2]} 20... Be6 {[%clk 0:00:28.6]} 21. Rhe1 {[%clk 0:00:18.8]} 21... Bxc4 {[%clk 0:00:27.1]} 22. Rxe4 {[%clk 0:00:17.9]} 22... Be6 {[%clk 0:00:25.8]} 23. Rde1 {[%clk 0:00:14]} 23... Rhe8 {[%clk 0:00:25.5]} 24. f4 {[%clk 0:00:11.7]} 24... Rbc8 {[%clk 0:00:24.9]} 25. Kc2 {[%clk 0:00:09]} 25... Nd6 {[%clk 0:00:18.7]} 26. R4e3 {[%clk 0:00:07.2]} 26... Nc4 {[%clk 0:00:17.8]} 27. R3e2 {[%clk 0:00:05.4]} 27... Na3+ {[%clk 0:00:16.9]} 28. Kb2 {[%clk 0:00:02.4]} 28... Nb5 {[%clk 0:00:16.6]} 29. Kc2 {[%clk 0:00:01.4]} 29... Nxc3 {[%clk 0:00:14.2]} 30. Kb2 {[%clk 0:00:01]} 30... Nxe2 {[%clk 0:00:13.4]} 31. Rxe2 {[%clk 0:00:00.4]} 31... Bxa2 {[%clk 0:00:11.4]} 0-1

[Event "Live Chess"]
[Site "Chess.com"]
[Date "2011.01.29"]
[Round "-"]
[White "hipposcottimus"]
[Black "invidi0us"]
[Result "1-0"]
[CurrentPosition "r1b1kbnr/ppN1pppp/2p2q2/8/5B2/P4N2/1PP1BPPP/R2QK2R b KQkq -"]
[Timezone "UTC"]
[ECO "B01"]
[ECOUrl "https://www.chess.com/openings/Scandinavian-Defense-Mieses-Kotrc-Variation-3.Nc3"]
[UTCDate "2011.01.29"]
[UTCTime "22:21:36"]
[WhiteElo "1658"]
[BlackElo "1428"]
[TimeControl "60"]
[Termination "hipposcottimus won by checkmate"]
[StartTime "22:21:36"]
[EndDate "2011.01.29"]
[EndTime "22:22:11"]
[Link "https://www.chess.com/game/live/92751438"]

1. e4 {[%clk 0:01:00]} 1... d5 {[%clk 0:01:00]} 2. exd5 {[%clk 0:00:59.7]} 2... Qxd5 {[%clk 0:00:58.6]} 3. Nc3 {[%clk 0:00:59.4]} 3... Qe6+ {[%clk 0:00:56.5]} 4. Be2 {[%clk 0:00:59.1]} 4... Qd7 {[%clk 0:00:55.5]} 5. d4 {[%clk 0:00:58.7]} 5... Nc6 {[%clk 0:00:54.4]} 6. Nf3 {[%clk 0:00:58.3]} 6... Qd6 {[%clk 0:00:53.1]} 7. d5 {[%clk 0:00:57.7]} 7... Nb4 {[%clk 0:00:51.5]} 8. a3 {[%clk 0:00:53.9]} 8... Nxd5 {[%clk 0:00:49]} 9. Nxd5 {[%clk 0:00:52]} 9... c6 {[%clk 0:00:48.2]} 10. Bf4 {[%clk 0:00:49]} 10... Qf6 {[%clk 0:00:43.5]} 11. Nc7# {[%clk 0:00:46.8]} 1-0

[Event "Live Chess"]
[Site "Chess.com"]
[Date "2011.01.29"]
[Round "-"]
[White "invidi0us"]
[Black "hipposcottimus"]
[Result "0-1"]
[CurrentPosition "8/8/8/1R2p3/3p2p1/p1NP4/5PP1/k5K1 w - -"]
[Timezone "UTC"]
[ECO "D02"]
[ECOUrl "https://www.chess.com/openings/Queens-Pawn-Opening-Zukertort-Variation-2...c6-3.Bg5"]
[UTCDate "2011.01.29"]
[UTCTime "22:19:10"]
[WhiteElo "1431"]
[BlackElo "1655"]
[TimeControl "60"]
[Termination "hipposcottimus won on time"]
[StartTime "22:19:10"]
[EndDate "2011.01.29"]
[EndTime "22:21:12"]
[Link "https://www.chess.com/game/live/92750678"]

1. d4 {[%clk 0:01:00]} 1... d5 {[%clk 0:01:00]} 2. Nf3 {[%clk 0:00:54.3]} 2... c6 {[%clk 0:00:59.6]} 3. Bg5 {[%clk 0:00:53.2]} 3... e6 {[%clk 0:00:59.4]} 4. Bxd8 {[%clk 0:00:51.7]} 4... Kxd8 {[%clk 0:00:59.2]} 5. Ne5 {[%clk 0:00:51.1]} 5... Bd7 {[%clk 0:00:59]} 6. Nxf7+ {[%clk 0:00:50]} 6... Ke7 {[%clk 0:00:57.8]} 7. Nxh8 {[%clk 0:00:49.7]} 7... Nf6 {[%clk 0:00:57.5]} 8. Qd3 {[%clk 0:00:48.6]} 8... g6 {[%clk 0:00:57.2]} 9. Qh3 {[%clk 0:00:47.2]} 9... Be8 {[%clk 0:00:56.9]} 10. Qh4 {[%clk 0:00:45.4]} 10... Bg7 {[%clk 0:00:56.5]} 11. Nxg6+ {[%clk 0:00:44]} 11... hxg6 {[%clk 0:00:55.3]} 12. e4 {[%clk 0:00:39.9]} 12... Nd7 {[%clk 0:00:52.3]} 13. e5 {[%clk 0:00:38.8]} 13... g5 {[%clk 0:00:49.8]} 14. exf6+ {[%clk 0:00:37.2]} 14... Bxf6 {[%clk 0:00:48.7]} 15. Qh7+ {[%clk 0:00:35.9]} 15... Bf7 {[%clk 0:00:48.4]} 16. Bd3 {[%clk 0:00:34]} 16... Rh8 {[%clk 0:00:47.4]} 17. Qxh8 {[%clk 0:00:28.9]} 17... Bxh8 {[%clk 0:00:47.1]} 18. O-O {[%clk 0:00:27.1]} 18... Bxd4 {[%clk 0:00:46.6]} 19. Re1 {[%clk 0:00:25.4]} 19... Bxb2 {[%clk 0:00:45.5]} 20. Nd2 {[%clk 0:00:22.9]} 20... Bxa1 {[%clk 0:00:44.7]} 21. Rxa1 {[%clk 0:00:22.6]} 21... Nc5 {[%clk 0:00:43.3]} 22. Re1 {[%clk 0:00:22.3]} 22... Nxd3 {[%clk 0:00:42.4]} 23. cxd3 {[%clk 0:00:20.4]} 23... Bg6 {[%clk 0:00:42.1]} 24. Re3 {[%clk 0:00:17.9]} 24... d4 {[%clk 0:00:41]} 25. Rf3 {[%clk 0:00:16]} 25... c5 {[%clk 0:00:40.7]} 26. Ne4 {[%clk 0:00:12.8]} 26... g4 {[%clk 0:00:40]} 27. Rf6 {[%clk 0:00:11.4]} 27... Bf5 {[%clk 0:00:38.3]} 28. Rh6 {[%clk 0:00:09.9]} 28... Kd7 {[%clk 0:00:34]} 29. h4 {[%clk 0:00:09.4]} 29... Kc6 {[%clk 0:00:33]} 30. h5 {[%clk 0:00:08.6]} 30... Kb5 {[%clk 0:00:32.2]} 31. Rf6 {[%clk 0:00:07.4]} 31... Kb4 {[%clk 0:00:30.4]} 32. h6 {[%clk 0:00:07]} 32... Ka3 {[%clk 0:00:29.4]} 33. Rf7 {[%clk 0:00:06.7]} 33... Kxa2 {[%clk 0:00:27.8]} 34. Rxb7 {[%clk 0:00:06.4]} 34... a5 {[%clk 0:00:25.8]} 35. h7 {[%clk 0:00:05.7]} 35... Bxh7 {[%clk 0:00:25]} 36. Rxh7 {[%clk 0:00:04.5]} 36... a4 {[%clk 0:00:24.2]} 37. Rb7 {[%clk 0:00:04]} 37... a3 {[%clk 0:00:23.8]} 38. Nxc5 {[%clk 0:00:02.9]} 38... e5 {[%clk 0:00:21.6]} 39. Na4 {[%clk 0:00:02.6]} 39... Ka1 {[%clk 0:00:19.8]} 40. Rb5 {[%clk 0:00:02.2]} 40... Ka2 {[%clk 0:00:19.4]} 41. Nc3+ {[%clk 0:00:01]} 41... Ka1 {[%clk 0:00:17.8]} 0-1

[Event "Live Chess"]
[Site "Chess.com"]
[Date "2011.01.29"]
[Round "-"]
[White "hipposcottimus"]
[Black "invidi0us"]
[Result "1-0"]
[CurrentPosition "r3kbr1/ppp1pQ1p/8/3R4/8/6P1/Pq5P/5RK1 b q -"]
[Timezone "UTC"]
[ECO "B01"]
[ECOUrl "https://www.chess.com/openings/Scandinavian-Defense-Mieses-Kotrc-Variation-3.Nc3"]
[UTCDate "2011.01.29"]
[UTCTime "22:16:55"]
[WhiteElo "1651"]
[BlackElo "1435"]
[TimeControl "60"]
[Termination "hipposcottimus won by checkmate"]
[StartTime "22:16:55"]
[EndDate "2011.01.29"]
[EndTime "22:18:37"]
[Link "https://www.chess.com/game/live/92750150"]

1. e4 {[%clk 0:01:00]} 1... d5 {[%clk 0:01:00]} 2. exd5 {[%clk 0:00:57.8]} 2... Qxd5 {[%clk 0:00:59.1]} 3. Nc3 {[%clk 0:00:57.5]} 3... Qe6+ {[%clk 0:00:58.6]} 4. Be2 {[%clk 0:00:57.1]} 4... Qd7 {[%clk 0:00:58.2]} 5. d4 {[%clk 0:00:55.9]} 5... Nf6 {[%clk 0:00:57.2]} 6. Nf3 {[%clk 0:00:55.6]} 6... Qc6 {[%clk 0:00:55.7]} 7. O-O {[%clk 0:00:55.3]} 7... Ng4 {[%clk 0:00:51.2]} 8. d5 {[%clk 0:00:54.9]} 8... Qg6 {[%clk 0:00:49.8]} 9. Nh4 {[%clk 0:00:52.7]} 9... Qd6 {[%clk 0:00:45.3]} 10. Bxg4 {[%clk 0:00:51.8]} 10... g5 {[%clk 0:00:43.6]} 11. Nf5 {[%clk 0:00:50.5]} 11... Qf6 {[%clk 0:00:41.4]} 12. Re1 {[%clk 0:00:47.1]} 12... Bxf5 {[%clk 0:00:39.8]} 13. Bxf5 {[%clk 0:00:42.2]} 13... Qxf5 {[%clk 0:00:39]} 14. Be3 {[%clk 0:00:39.6]} 14... Rg8 {[%clk 0:00:38.1]} 15. g3 {[%clk 0:00:37.4]} 15... Nd7 {[%clk 0:00:36.3]} 16. f4 {[%clk 0:00:36.4]} 16... gxf4 {[%clk 0:00:34]} 17. Bxf4 {[%clk 0:00:35.2]} 17... Qxf4 {[%clk 0:00:31.6]} 18. Rf1 {[%clk 0:00:33.4]} 18... Qc4 {[%clk 0:00:29]} 19. Qf3 {[%clk 0:00:32.8]} 19... f6 {[%clk 0:00:26.8]} 20. Ne4 {[%clk 0:00:30.8]} 20... Qxd5 {[%clk 0:00:24]} 21. Nxf6+ {[%clk 0:00:29.5]} 21... Nxf6 {[%clk 0:00:20.1]} 22. Rad1 {[%clk 0:00:27.6]} 22... Qc5+ {[%clk 0:00:18]} 23. Kg2 {[%clk 0:00:25.6]} 23... Nd5 {[%clk 0:00:15.2]} 24. Rxd5 {[%clk 0:00:23.4]} 24... Qxc2+ {[%clk 0:00:13.1]} 25. Kg1 {[%clk 0:00:21.7]} 25... Qxb2 {[%clk 0:00:10.8]} 26. Qf7# {[%clk 0:00:20.6]} 1-0

[Event "Live Chess"]
[Site "Chess.com"]
[Date "2011.01.29"]
[Round "-"]
[White "EminemFan"]
[Black "hipposcottimus"]
[Result "0-1"]
[CurrentPosition "6k1/p5pp/5p2/2r1pP2/6P1/5b2/PPP1N2P/3K4 w - -"]
[Timezone "UTC"]
[ECO "C20"]
[ECOUrl "https://www.chess.com/openings/Kings-Pawn-Opening-Leonardis-Variation"]
[UTCDate "2011.01.29"]
[UTCTime "22:14:42"]
[WhiteElo "1378"]
[BlackElo "1647"]
[TimeControl "60"]
[Termination "hipposcottimus won by resignation"]
[StartTime "22:14:42"]
[EndDate "2011.01.29"]
[EndTime "22:15:56"]
[Link "https://www.chess.com/game/live/92749537"]

1. e4 {[%clk 0:01:00]} 1... e5 {[%clk 0:01:00]} 2. d3 {[%clk 0:00:59.7]} 2... Nc6 {[%clk 0:00:59.6]} 3. f4 {[%clk 0:00:59.4]} 3... Nf6 {[%clk 0:00:59.3]} 4. f5 {[%clk 0:00:58.6]} 4... d5 {[%clk 0:00:57.9]} 5. g4 {[%clk 0:00:57.4]} 5... dxe4 {[%clk 0:00:56.8]} 6. dxe4 {[%clk 0:00:57]} 6... Nxe4 {[%clk 0:00:55.7]} 7. Bg2 {[%clk 0:00:56.7]} 7... Qxd1+ {[%clk 0:00:53.4]} 8. Kxd1 {[%clk 0:00:55.2]} 8... Nf2+ {[%clk 0:00:53]} 9. Ke2 {[%clk 0:00:53.1]} 9... Nxh1 {[%clk 0:00:52.6]} 10. Bxc6+ {[%clk 0:00:52.9]} 10... bxc6 {[%clk 0:00:51]} 11. Bg5 {[%clk 0:00:52.1]} 11... f6 {[%clk 0:00:49.8]} 12. Be3 {[%clk 0:00:48.9]} 12... Bb7 {[%clk 0:00:49.1]} 13. Nc3 {[%clk 0:00:46.5]} 13... c5 {[%clk 0:00:48.8]} 14. Bxc5 {[%clk 0:00:45.3]} 14... Bxc5 {[%clk 0:00:47.3]} 15. Nb5 {[%clk 0:00:45.1]} 15... O-O {[%clk 0:00:45.7]} 16. Nxc7 {[%clk 0:00:43.6]} 16... Bd6 {[%clk 0:00:45.4]} 17. Nxa8 {[%clk 0:00:41.4]} 17... Bc6 {[%clk 0:00:43.8]} 18. Rd1 {[%clk 0:00:37.1]} 18... Bc5 {[%clk 0:00:34.6]} 19. Nc7 {[%clk 0:00:34.9]} 19... Rc8 {[%clk 0:00:33.5]} 20. Ne6 {[%clk 0:00:32.9]} 20... Nf2 {[%clk 0:00:32.9]} 21. Nxc5 {[%clk 0:00:30.5]} 21... Nxd1 {[%clk 0:00:31.8]} 22. Kxd1 {[%clk 0:00:29.6]} 22... Bf3+ {[%clk 0:00:30.9]} 23. Ne2 {[%clk 0:00:27.6]} 23... Rxc5 {[%clk 0:00:30.4]} 0-1